Cogmind - Beta 15 @@@ ROGUE MODE // 2025.05.12 @ 20:37:42 Player: Henry Result: Destroyed by G-34 Mercenary with Small Laser Performance ------------- Evolutions (1) 500 Regions Visited (3) 600 Robots Destroyed (11) 55 Value Destroyed (283) 283 Prototype IDs (1) 20 Alien Tech Used (0) 0 Bonus (0) 0 TOTAL SCORE: 1458 Bonus ------- None Cogmind --------- Core Integrity 0/400 Matter 291/300 Energy 100/100 System Corruption 4% Temperature Cool (6) Movement Rolling (115) Ox1 Location -9/Materials Parts ------- > --- POWER (1) -------- (None) > --- PROPULSION (3) --- Compact Wheel (fused) > --- UTILITY (3) ------ Small Storage Unit Improved Propulsion Shielding Improved Propulsion Shielding > --- WEAPON (2) ------- Great Maul Great Maul > --- INVENTORY (8) ---- Aluminum Leg Aluminum Leg Hover Unit Light Armor Plating Small Laser Advanced Beam Cannon Light Assault Rifle Peak State ------------ > --- POWER ------------ (None) > --- PROPULSION ------- Compact Wheel Compact Wheel > --- UTILITY ---------- Small Storage Unit Improved Propulsion Shielding Improved Propulsion Shielding > --- WEAPON ----------- Great Maul Great Maul > --- INVENTORY -------- Aluminum Leg Aluminum Leg Hover Unit Small Laser Advanced Beam Cannon Light Assault Rifle [Rating: 15] Favorites ----------- Power Light Ion Engine Engine Light Ion Engine Propulsion Compact Wheel Leg Aluminum Leg Wheel Compact Wheel Utility Small Storage Unit Storage Small Storage Unit Protection Improved Propulsion Shielding Weapon Light Assault Rifle Energy Gun Small Laser Energy Cannon Advanced Beam Cannon Ballistic Gun Light Assault Rifle Launcher Grenade Launcher Impact Weapon Great Maul Build | -11 -10 -10 -9 ------- Run | Yrd Mat Min Mat Slots Evolved 2 | . . . 2 Power . | . . . . Propulsion 1 | . . . 1 Utility 1 | . . . 1 Weapon . | . . . . Parts Attached 21 | 6 1 . 14 Power 2 | 1 . . 1 Engine 2 | 1 . . 1 Core . | . . . . Reactor . | . . . . Propulsion 7 | 2 . . 5 Treads . | . . . . Leg 2 | . . . 2 Wheel 5 | 2 . . 3 Hover . | . . . . Flight . | . . . . Utility 3 | 1 . . 2 Device . | . . . . Storage 1 | 1 . . . Processor . | . . . . Hackware . | . . . . Protection 2 | . . . 2 Artifact . | . . . . Weapon 9 | 2 1 . 6 Energy Gun 1 | . . . 1 Energy Cannon 2 | . . . 2 Ballistic Gun 2 | 2 . . . Ballistic Cannon . | . . . . Launcher 2 | . 1 . 1 Special Weapon . | . . . . Impact Weapon 2 | . . . 2 Slashing Weapon . | . . . . Piercing Weapon . | . . . . Special Melee Weapon . | . . . . Unidentified Prototypes 1 | . . . 1 Parts Lost 8 | . . 3 5 Power 2 | . . 1 1 Propulsion 4 | . . 1 3 Utility . | . . . . Weapon 2 | . . 1 1 Highest Loss Streak 4 | . . 3 4 To Critical Strikes . | . . . . Average Backups 5 | 2 4 5 6 Power . | . 1 1 . Propulsion 2 | 1 2 2 2 Utility . | . . . . Weapon 2 | . 1 2 3 Tool/Special . | . . . . Unused Backups 2 | . . . 2 Power . | . . . . Propulsion 1 | . . . 1 Utility 1 | . . . 1 Weapon . | . . . . Tool/Special . | . . . . Average Slot Usage (%) 71 | . 85 78 68 Engine 7 | . 14 12 5 Leg 2 | . . . 3 Wheel 21 | . 28 26 20 Storage 11 | . 14 14 11 Protection 7 | . . . 8 Energy Gun 1 | . . . 1 Energy Cannon 1 | . . . 1 Ballistic Gun 7 | . 22 14 5 Launcher 3 | . 5 10 2 Impact Weapon 7 | . . . 8 Peak Build Rating 15 | 6 6 6 15 Average Rating 9 | 5 6 5 10 On Entrance 3 | . 6 6 3 Naked Turns . | . . . . Heaviest Build 17 | 10 12 12 17 Greatest Support 48 | 26 26 26 48 Greatest Overweight (x) 1 | . . . 1 Average Overweight (x) . | . . . . Largest Inventory Capacity 8 | 8 8 8 8 Average Capacity 7 | 7 8 8 8 Most Carried 8 | 4 5 5 8 Average Carried 5 | 2 4 5 6 Final Capacity 8 | 8 8 8 8 Final Carried 7 | 4 5 5 7 Class Distribution -------------------- 100% | Mutant Dominant Class ---------------- Mutant | -10/Materials Mutant | -10/Mines Mutant | -9/Materials Resources | -11 -10 -10 -9 ----------- Run | Yrd Mat Min Mat Matter Collected 451 | 210 . 90 151 Remotely . | . . . . Salvage Created 241 | . 10 . 231 Parts 18 | . 2 . 16 Haulers Intercepted . | . . . . Recyclers Shooed . | . . . . Parts Field Recycled . | . . . . Retrieved Matter . | . . . . Parts Self-Destructed . | . . . . Prevented . | . . . . Kills | -11 -10 -10 -9 ------- Run | Yrd Mat Min Mat Combat Hostiles Destroyed 11 | . 3 . 8 Melee 1 | . . . 1 AOE 6 | . 3 . 3 Classes Destroyed 3 | . 1 . 2 Swarmer 6 | . 3 . 3 Grunt 2 | . . . 2 Sentry 3 | . . . 3 Best Kill Streak 3 | . 3 . 3 Combat Bots Only 3 | . 3 . 3 Max Kills in Single Turn 3 | . 2 . 3 Gunslinging . | . . . . Exploded 3 | . 2 . 3 Melee 1 | . . . 1 Uniques/NPCs Destroyed . | . . . . Combat | -11 -10 -10 -9 -------- Run | Yrd Mat Min Mat Hostile Shots Fired 118 | . 16 6 96 Missed 30 | . 7 . 23 Hits 88 | . 9 6 73 Melee 3 | . . 3 . Projectile 85 | . 9 3 73 AOE 1 | . . 1 . Critical Strikes 7 | . . . 7 Damage Taken 1242 | . 118 161 963 Core 507 | . 28 78 401 Absorbed by Shields . | . . . . Redirected to Shielding 46 | . . . 46 Core Remaining (%) 78 | 100 . 57 . Volleys Fired 4 | . 3 . 1 Largest 1 | . 1 . 1 Hottest 30 | . 30 . 30 Shots Fired 4 | . 3 . 1 Gun . | . . . . Cannon . | . . . . Launcher 4 | . 3 . 1 Special . | . . . . Kinetic . | . . . . Thermal . | . . . . Explosive 4 | . 3 . 1 Electromagnetic . | . . . . Robot Hit Streak 2 | . 1 . 2 Robot Miss Streak 1 | . 1 . . Penetration Max . | . . . . Secondary Targets . | . . . . Shots Hit Robots 16 | . 1 . 15 Core Hits 9 | . 4 . 5 Critical Kills . | . . . . Critical Parts Destroyed 3 | . . . 3 Critical Strikes 3 | . . . 3 Smash 3 | . . . 3 Melee Attacks 19 | . . . 19 Impact 19 | . . . 19 Slashing . | . . . . Piercing . | . . . . Sneak Attacks . | . . . . Combat Hostiles . | . . . . Follow-up Attacks 2 | . . . 2 Damage Inflicted 883 | . 170 7 706 Guns . | . . . . Cannons . | . . . . Explosions 286 | . 170 . 116 Melee 590 | . . . 590 Ramming 7 | . . 7 . Kinetic . | . . . . Thermal . | . . . . Explosive 286 | . 170 . 116 Electromagnetic . | . . . . Impact 590 | . . . 590 Slashing . | . . . . Piercing . | . . . . Highest Corruption 4 | . . . 4 Average Corruption 4 | . . . 4 Corruption Purged . | . . . . Corruption Blocked . | . . . . Effects 9 | . . . 9 Message Errors 4 | . . . 4 Matter Fused 3 | . . . 3 Parts Rejected 1 | . . . 1 Parts Fused 1 | . . . 1 Overload Shots . | . . . . Overflow Damage 142 | . 5 . 137 Projectiles . | . . . . Explosions 5 | . 5 . . Melee 137 | . . . 137 Knockbacks 4 | . . 1 3 Impact 4 | . . 1 3 Kinetic . | . . . . Secondary . | . . . . Self-Inflicted Damage 47 | . 44 3 . Shots 2 | . 2 . . Rammed 2 | . . 2 . Targets Rammed 2 | . . 2 . Kicked . | . . . . Crushed . | . . . . Highest Temperature 9 | . . . 9 Average Temperature 6 | . . . 6 Received Heat Transfer 490 | . . 40 450 Siege Activations . | . . . . Martial Activations . | . . . . Shielding Activations . | . . . . Robots Disrupted . | . . . . Combat Hostiles . | . . . . Robots Corrupted 4 | . . . 4 Combat Hostiles 4 | . . . 4 Parts Fried 5 | . . . 5 Impact Corruptions 5 | . . . 5 Robots Melted . | . . . . Combat Hostiles . | . . . . Parts Melted . | . . . . Heat Transferred . | . . . . Parts Sabotaged . | . . . . Parts Stolen . | . . . . Parts Stripped . | . . . . Power Chain Reactions . | . . . . Alert | -11 -10 -10 -9 ------- Run | Yrd Mat Min Mat Maximum Alert Level . | . . . . Low Security (%) 100 | 100 100 100 100 Level 1 . | . . . . Level 2 . | . . . . Level 3 . | . . . . Level 4 . | . . . . Level 5 . | . . . . High Security . | . . . . Max Security . | . . . . Peak Influence 89 | . 89 30 84 Initial 30 | . . 30 . Average 27 | . 44 15 31 Influence Increases 372 | . 93 . 279 Destroy 0b10 Robot/C 220 | . 60 . 160 Destroy Leader 60 | . 10 . 50 Disable Machine 30 | . 15 . 15 Destroy Structure 17 | . 8 . 9 Lose Combat Pursuer 45 | . . . 45 Influence Decreases 300 | . 14 79 207 Entered New Map 49 | . . 49 . Time Decay 192 | . 14 20 158 Lost Part 59 | . . 10 49 Squads Dispatched 2 | . . . 2 Investigation 1 | . . . 1 Extermination . | . . . . Reinforcement 1 | . . . 1 Assault . | . . . . Garrison . | . . . . Intercept . | . . . . Searches Triggered . | . . . . Construction Impeded . | . . . . Haulers Reinforced . | . . . . Active Scanning Responses . | . . . . Cargo Convoy Interrupts . | . . . . Stealth | -11 -10 -10 -9 --------- Run | Yrd Mat Min Mat Distress Signals 2 | . 1 . 1 Communications Jammed . | . . . . Distress Signals . | . . . . Times Spotted 36 | . 8 5 23 Peak Tracking Total 9 | . 5 3 9 Tactical Retreats 3 | . . . 3 Traps | -11 -10 -10 -9 ------- Run | Yrd Mat Min Mat Traps Triggered 1 | . . . 1 Indirectly . | . . . . Trap Hack Attempts . | . . . . Triggered . | . . . . Disarmed . | . . . . Reprogrammed . | . . . . Reused . | . . . . Traps Extracted . | . . . . Installed . | . . . . Triggered . | . . . . Machines | -11 -10 -10 -9 ---------- Run | Yrd Mat Min Mat Machines Disabled 2 | . 1 . 1 Max in Single Turn 1 | . 1 . 1 Machines Repaired . | . . . . Machines Dismantled . | . . . . Machines Sabotaged . | . . . . Overloaded Fab Kills . | . . . . Hacking | -11 -10 -10 -9 --------- Run | Yrd Mat Min Mat Machines Accessed 1 | . . . 1 Terminals 1 | . . . 1 Fabricators . | . . . . Repair Stations . | . . . . Recycling Units . | . . . . Scanalyzers . | . . . . Garrison Access . | . . . . Total Hacks 2 | . . . 2 Successful . | . . . . Failed 2 | . . . 2 Catastrophic 1 | . . . 1 Database Lockouts . | . . . . Manual 2 | . . . 2 Terminals 2 | . . . 2 Fabricators . | . . . . Repair Stations . | . . . . Recycling Units . | . . . . Scanalyzers . | . . . . Garrison Access . | . . . . Terminal Hacks . | . . . . Fabricator Hacks . | . . . . Repair Station Hacks . | . . . . Recycling Unit Hacks . | . . . . Scanalyzer . | . . . . Garrison Access Hacks . | . . . . Unauthorized Hacks . | . . . . Terminals . | . . . . Fabricators . | . . . . Repair Stations . | . . . . Recycling Units . | . . . . Scanalyzers . | . . . . Garrison Access . | . . . . Data Cores Recovered . | . . . . Used . | . . . . Hacking Detections 1 | . . . 1 Full Trace Events . | . . . . Feedback Events . | . . . . Feedback Blocked . | . . . . Robot Schematics Acquired . | . . . . Robots Built . | . . . . Authchips . | . . . . Time . | . . . . Total Robot Build Rating . | . . . . Part Schematics Acquired . | . . . . Parts Built . | . . . . Authchips . | . . . . Time . | . . . . Total Part Build Rating . | . . . . Parts Repaired . | . . . . Time . | . . . . Parts Recycled . | . . . . Recycled Matter . | . . . . Retrieved Matter . | . . . . Retrieved Components . | . . . . Parts Scanalyzed . | . . . . Part Schematics Acquired . | . . . . Parts Damaged . | . . . . Bothacking | -11 -10 -10 -9 ------------ Run | Yrd Mat Min Mat Used RIF Installer . | . . . . Robots Hacked . | . . . . Non-combat . | . . . . Combat . | . . . . Robot Hacks Applied . | . . . . Relay Couplers Released . | . . . . Fabnet Peak Effective % . | . . . . Robots Rewired . | . . . . Allies Hacked . | . . . . Hacks Repelled . | . . . . Allies | -11 -10 -10 -9 -------- Run | Yrd Mat Min Mat Total Allies . | . . . . Largest Group . | . . . . Highest-Rated Group . | . . . . Highest-Rated Ally . | . . . . Total Orders . | . . . . Ally Attacks . | . . . . Total Damage . | . . . . Kills . | . . . . Allies Corrupted . | . . . . Allies Melted . | . . . . Intel | -11 -10 -10 -9 ------- Run | Yrd Mat Min Mat Active Infowar (turns) . | . . . . Robot Analysis Total . | . . . . Derelict Logs Recovered . | . . . . Drone Launches . | . . . . Drone Recoveries . | . . . . Exploration | -11 -10 -10 -9 ------------- Run | Yrd Mat Min Mat Turns Passed 683 | 51 44 78 510 Spaces Moved 552 | 44 40 65 403 Core 2 | 2 . . . Treads . | . . . . Legs 53 | . . . 53 Wheels 497 | 42 40 65 350 Hover . | . . . . Flight . | . . . . Fastest Speed 50 | 50 90 90 100 Average Speed 102 | 87 90 90 107 Slowest Speed 120 | 90 90 100 120 Overloaded Moves . | . . . . Propulsion Burnouts . | . . . . Robots Hopped . | . . . . Potential Cave-ins . | . . . . Cave-ins Triggered . | . . . . Exploration Rate (%) 18 | 5 17 19 34 Regions Visited 3 Branch Regions 1 Pre-discovered Areas . | . . . . Known Exits Taken . | . . . . Unknown Exits Taken 3 | 1 1 1 . Scrap Searched 1 | . . 1 . Spaces Dug . | . . . . Terrain Destroyed 16 | . 8 . 8 Melee . | . . . . Projectile . | . . . . AOE 16 | . 8 . 8 Terrain Rammed . | . . . . Walls Destroyed . | . . . . Machines Disabled . | . . . . Actions | -11 -10 -10 -9 --------- Run | Yrd Mat Min Mat Total 625 | 53 44 83 445 Wait 17 | . . 17 . Move 549 | 43 39 64 403 Hop . | . . . . Pick Up 9 | 4 1 . 4 Fast Attach 14 | 6 . . 8 Attach 6 | . . . 6 Detach 5 | . . . 5 Swap 2 | . 1 . 1 Drop 1 | . . . 1 Fire 4 | . 3 . 1 Melee 16 | . . . 16 Ram 2 | . . 2 . Kick . | . . . . Crush . | . . . . Escape Stasis . | . . . . Rewire . | . . . . Trap . | . . . . Miscellaneous . | . . . . Route ------- -11/Scrapyard -10/Materials -10/Mines -9/Materials History --------- Turn | Location | Event 15 | -11/Scrapyard | Discovered new exit (range 16) 52 | -11/Scrapyard | Entered Materials 78 | -10/Materials | Discovered new exit (range 14) 96 | -10/Materials | Entered Mines 97 | -10/Mines | Assembled infested the area 102 | -10/Mines | Assisted by a Guerilla fighting off Assembled 118 | -10/Mines | Met a Derelict bent on vengeance 128 | -10/Mines | Found DCF Scrap (10 items) 163 | -10/Mines | Discovered new exit (range 8) 174 | -10/Mines | Entered Materials 174 | -9/Materials | Evolved 2 slots: Propulsion x1, Utility x1 198 | -9/Materials | Lost 3 parts (1p1n1w) 311 | -9/Materials | Build established: Mutant 490 | -9/Materials | Lost 4 parts (1p2n1w) 502 | -9/Materials | Core integrity fell below 50% 661 | -9/Materials | Core integrity fell below 20% 684 | -9/Materials | Destroyed by G-34 Mercenary with Small Laser Last Messages --------------- Mercenary. 00612_ G-34 Mercenary destroyed. 00615_ Destroyed Heat Sink. 00615_ G-34 Mercenary system corrupted by crushing effect. 00616_ G-34 Mercenary misfires. 00618_ G-34 Mercenary knocked back. 00625_ Destroyed Aluminum Leg. 00625_ G-34 Mercenary system corrupted by crushing effect. 00626_ G-34 Mercenary system terminally corrupted. 00628_ Acquired 9 matter. 00628_ K-01 Serf collects debris. 00635_ W-16 Scout sends out distress signal. 00635_ K-01 Serf cleans the Processing Tank. 00639_ System corrupted: Matter fused (-9). 00639_ K-01 Serf collects debris. 00657_ D,HGDS&C B0509MM8XQ&DY3S 00677_ Critical hit (Burn: +37). Map ----- +----------------------------------------------------+ | ?????????????????????????????????????????????????? | | ??????????????????? ?????????????????????????????? | | ?????????????????# ?????????#####??????????????? | | ?????????????????# ?####### #??????????????? | | ?????????????????# ?# ## """ #??????????????? | | ?????????????????# ?# ## """ #??????????????? | | ?????????????????# ## ## """ #??????????????? | | ?????????????????# ## ## #??????????????? | | ?????????????????# ## ## """ #??????????????? | | ?????????????????# ## ## """ #??????????????? | | ?????????????????# ## ## """ #??????????????? | | ?????????????????# ## ## #??????????????? | | ????????????????## ## ####+###??????????????? | | ????????????????# ###+### ###############? | | ????????????????# [= * #? | | ????????????????# *%= [ ## | | ????????????????# *% % # | | ????????????????# ### ###### """ # | | ????????????????## ##############????# """ # | | ?????????????????# # #????# """ # | | ?????????????????# # """ "" #????# """ !/% | | ?????????????????# # "" T" #????# """ [# | | ?????????????????# # """g "" #????# ## | | ?????????????????# # g #????# #? | | ?????????????????#t #####/######+###### """ #? | | ?????????????????# @ g g """ #? | | ?????????????????# ############ """ ## | | ?????????????????# #???# !# """ "" | | ?????????????????# ########???# """ # " " T" | | ?????????????????# #??????????# """ + "" | | ?????????????????# #??????????# """ # ## | | ?????????????????# #??????????# # "" #? | | ?????????????????# #??????????# ?# "T ## | | ????????????????? +?????????######### "" | | ????????????????## #?????????+ | | ?????????????????# #??????????######## | | ?????????????????# #?????????????????##+######## | | ?????????????????# #????????????????? ???? | | ?????????????????# ????????????????# # | | ????????????????? ????????????????# # | | ????????????????? ????????????????# # | | ?????????????????? T ????????????????# # | | ?????????????????????????????????????# # | | ?????????????????????????????????????# #### | | ?????????????????????????????????????# #??# | | ?????????????????????????????????????##########??? | | ?????????????????????????????????????????????????? | | ?????????????????????????????????????????????????? | | ?????????????????????????????????????????????????? | | ?????????????????????????????????????????????????? | +----------------------------------------------------+ Best States ------------- Heat Dissipation 28 Energy Generation 10 Energy Capacity 125 Matter Stores 300 Matter Capacity 300 Sight Range 16 Terrain Scan Density 10 Propulsion Shielding 66 Evasion (%) 55 Item Schematics ----------------- None Robot Schematics ------------------ None Fabricated ------------ Nothing Repaired ---------- Nothing Alien Tech Used ----------------- None Achievements -------------- None Challenges ------------ None Game ------ Seed FireTachyonDissipator Manual? 0 Play Time 00:13:18 Cumulative 450.7 hours Start 2025.05.12 @ 20:29:35 End 2025.05.12 @ 20:37:42 Sessions 1 Manual Loads 0 Difficulty Rogue Special Mode None Game No. 171 Rogue 171 Adventurer 0 Explorer 0 Win Type - Total 0 Types 0/0/0/0/0/0/0/0/0/0 Lore% 15 Gallery% 42 Achievement% 29 Wizard Run 0 Options --------- Layout 1 ASCII 0 Keyboard 1 Movement Numpad Keybinds 0 Fullscreen 1 Font 24/Smallcaps Map View 50x35 Zoom Use 0% Tactical HUD 1 Map Filters NONE Filters NONE Steam 1 RUN: 9ef7d96e-16d8-47ca-8c3a-18c2d3d82d2d